Workbook

Sheet Calculator
B2: Environmental Calculator
B4: Diameter in Millimeters | C4: 300
B5: Length in Meters | C5: 6
C6: CSP | D6: RCP | E6: % Difference
B7: Global Warming CO2 (Tonnes) | C7: =IF($C$4=0,0,VLOOKUP($C$4,Env,3)*$C$5) -> 0.1621404 | D7: =IF($C$4=0,0,VLOOKUP($C$4,Env,13)*$C$5) -> 0.2798729508 | E7: =IF(D7=0,0,(C7/D7)-1) -> -0.420664271
B8: Equivalent - KM's Driven | C8: =IF($C$4=0,0,VLOOKUP($C$4,Env,6)*$C$5) -> 647.9130384 | D8: =IF($C$4=0,0,VLOOKUP($C$4,Env,16)*$C$5) -> 1118.372311
B9: Fresh Water (Liters) | C9: =IF($C$4=0,0,VLOOKUP($C$4,Env,4)*$C$5) -> 1051.7904 | D9: =IF($C$4=0,0,VLOOKUP($C$4,Env,14)*$C$5) -> 2261.778689 | E9: =IF(D9=0,0,(C9/D9)-1) -> -0.5349720088
B10: Equivalent - No. of Plastic Bottles to Landfill* | C10: =IF($C$4=0,0,VLOOKUP($C$4,Env,7)*$C$5) -> 1513.367482 | D10: =IF($C$4=0,0,VLOOKUP($C$4,Env,17)*$C$5) -> 3254.357825
B11: Total Primary Energy (Megajoules) | C11: =IF($C$4=0,0,VLOOKUP($C$4,Env,5)*$C$5) -> 2233.77588 | D11: =IF($C$4=0,0,VLOOKUP($C$4,Env,15)*$C$5) -> 3691.536885 | E11: -0.3948927102
B12: Equivalent - Smart Phones Charged | C12: =IF($C$4=0,0,VLOOKUP($C$4,Env,8)*$C$5) -> 20949.35038 | D12: =IF($C$4=0,0,VLOOKUP($C$4,Env,18)*$C$5) -> 36160.98461
B14: References: CSPI Environmental Product Declaration - SCS-EPD-05002, CCPPA EPD - ASTM Certified, AGECO LCA of CSP vs RCP (Nov 2020), * 500ml

Sheet Calculations
A1: CSP | K1: Concrete | AI1: Category | AJ1: Units | AK1: Production | AL1: Transport | AM1: Manufacturing | AN1: End of Life | AO1: Total MT | AP1: Total KGs
D2: GWP | E2: Fresh Water | F2: P.E. | G2: KM / MT | H2: LT to BT | I2: No to MT | N2: GWP | O2: Fresh Water | P2: P.E. | Q2: KM / MT | R2: LT to BT | S2: No to MT
C3: KG/Meter | D3: =V6 -> 1.5013 | E3: =V7 -> 9738.8 | F3: =V8 -> 20683.11 | G3: 3996 | H3: 1.39 | I3: 129205 | M3: KG/Meter | N3: =W6 -> 0.221 | O3: =W7 -> 1786 | P3: =W8 -> 2915 | Q3: 3996 | R3: 1.39 | S3: 129205 | AI3: GWP | AJ3: CO2 Metric Ton | AK3: 2.21 | AL3: 0.0202 | AM3: 0.0311 | AN3: -0.76 | AO3: =SUM(AK3:AN3) -> 1.5013 | AP3: =AO3*1000 -> 1501.3
A4: Profile | B4: Diameter | C4: 2 | D4: MT/Meter | E4: LT/Meter | F4: MJ/Meter | G4: KM/Meter | H4: 500ML/M | I4: Per/meter | K4: Length | L4: KG per Pc | M4: B or C | N4: MT/Meter | O4: LT/Meter | P4: MJ/Meter | Q4: KM/Meter | R4: 500ML/M | S4: Per/meter | V4: CSP | W4: RCP
B5: 0 | AI5: Fresh Water | AJ5: Cubic Meters | AK5: 14.9 | AL5: 0 | AM5: 0.0488 | AN5: -5.21
A6: 68 x 13 | B6: 300 | C6: 18 | D6: =$C6/1000*$D$3 -> 0.0270234 | E6: =$C6/1000*$E$3 -> 175.2984 | F6: =$C6/1000*$F$3 -> 372.29598 | G6: =$C6/1000*$G$3*D$3 -> 107.9855064 | H6: =E6/H$3*2 -> 252.2279137 | I6: =$C6/1000*$I$3*D$3 -> 3491.558397 | K6: 2.44 | L6: 515 | M6: =L6/K6 -> 211.0655738 | N6: =$M6/1000*$N$3 -> 0.0466454918 | O6: =$M6/1000*$O$3 -> 376.9631148 | P6: =$M6/1000*$P$3 -> 615.2561475 | Q6: =$M6/1000*$Q$3*N$3 -> 186.3953852 | R6: =O6/R$3*2 -> 542.3929709 | S6: =$M6/1000*$S$3*N$3 -> 6026.830768 | U6: Global Warming Potential (MT/MT) | V6: =AO3 -> 1.5013 | W6: =AP25 -> 0.221
B7: 400 | C7: 24 | D7: =$C7/1000*$D$3 -> 0.0360312 | E7: =$C7/1000*$E$3 -> 233.7312 | F7: =$C7/1000*$F$3 -> 496.39464 | G7: =$C7/1000*$G$3*D$3 -> 143.9806752 | H7: =E7/H$3*2 -> 336.3038849 | I7: =$C7/1000*$I$3*D$3 -> 4655.411196 | K7: 2.44 | L7: =515+150 -> 665 | M7: 272.5409836 | N7: =$M7/1000*$N$3 -> 0.06023155738 | O7: =$M7/1000*$O$3 -> 486.7581967 | P7: =$M7/1000*$P$3 -> 794.4569672 | Q7: =$M7/1000*$Q$3*N$3 -> 240.6853033 | R7: =O7/R$3*2 -> 700.3715061 | S7: =$M7/1000*$S$3*N$3 -> 7782.218371 | U7: Fresh Water (L/MT) | V7: =AO7 -> 9738.8 | W7: =AO29 -> 1786 | AJ7: Liters | AK7: =AK5*1000 -> 14900 | AL7: =AL5*1000 -> 0 | AM7: 48.8 | AN7: -5210 | AO7: =SUM(AK7:AN7) -> 9738.8
A8: Spiral Rib | B8: 450 | C8: 26.8 | D8: 0.04023484 | E8: 260.99984 | F8: 554.307348 | G8: 160.7784206 | H8: 375.5393381 | I8: 5198.542502 | K8: 2.44 | L8: 740 | M8: 303.2786885 | N8: 0.06702459016 | O8: 541.6557377 | P8: 884.057377 | Q8: 267.8302623 | R8: 779.3607737 | S8: 8659.912172 | U8: Total Primary Energy (MJ/MT) | V8: =AO15 -> 20683.11 | W8: =AO31 -> 2915
B9: 525 | C9: 31.3 | D9: 0.04699069 | E9: 304.82444 | F9: 647.381343 | G9: 187.7747972 | H9: 438.5963165 | I9: 6071.432101 | K9: 2.44 | L9: 1100 | M9: 450.8196721 | N9: 0.09963114754 | O9: 805.1639344 | P9: 1314.139344 | Q9: 398.1260656 | R9: 1158.509258 | S9: 12872.84242 | AI9: Total Primary | AJ9: Renewable | AK9: 1080 | AL9: 7.11 | AM9: 332 | AN9: -2.67
B10: 600 | C10: 35.8 | D10: 0.05374654 | E10: 348.64904 | F10: 740.455338 | G10: 214.7711738 | H10: 501.653295 | I10: 6944.321701 | K10: 2.44 | L10: 1335 | M10: 547.1311475 | N10: 0.1209159836 | O10: 977.1762295 | P10: 1594.887295 | Q10: 483.1802705 | R10: 1406.008963 | S10: 15622.94966 | AI10: Energy | AN10: =10*10*10*10*10*10*10*10*10 -> 1000000000
B11: 750 | C11: 44.7 | D11: 0.06710811 | E11: 435.32436 | F11: 924.535017 | G11: 268.1640076 | H11: 626.3659856 | I11: 8670.703353 | K11: 2.44 | L11: 1900 | M11: 778.6885246 | N11: 0.1720901639 | O11: 1390.737705 | P11: 2269.877049 | Q11: 687.6722951 | R11: 2001.061446 | S11: 22234.90963 | AJ11: Megajoules | AK11: =AK9 -> 1080 | AL11: =AL9 -> 7.11 | AM11: =AM9 -> 332 | AN11: =AN9/AN10 -> -2.67e-09 | AO11: =SUM(AK11:AN11) -> 1419.11
B12: 800 | C12: =44.7+2.97 -> 47.67 | D12: 0.071566971 | E12: 464.248596 | F12: 985.9638537 | G12: 285.9816161 | H12: 667.9835914 | I12: 9246.810488 | K12: 2.44 | L12: =1900+193 -> 2093 | M12: 857.7868852 | N12: 0.1895709016 | O12: 1532.007377 | P12: 2500.44877 | Q12: 757.525323 | R12: 2204.327161 | S12: 24493.50835
B13: 900 | C13: 53.6 | D13: 0.08046968 | E13: 521.99968 | F13: 1108.614696 | G13: 321.5568413 | H13: 751.0786763 | I13: 10397.085 | K13: 2.44 | L13: 2480 | M13: 1016.393443 | N13: 0.2246229508 | O13: 1815.278689 | P13: 2962.786885 | Q13: 897.5933115 | R13: 2611.911782 | S13: 29022.40836 | AJ13: Non-renew | AK13: 27300 | AL13: 286 | AM13: 828 | AN13: -9150 | AO13: =SUM(AK13:AN13) -> 19264
B14: 1000 | C14: 59.6 | D14: 0.08947748 | E14: 580.43248 | F14: 1232.713356 | G14: 357.5520101 | H14: 835.1546475 | I14: 11560.9378 | K14: 2.44 | L14: =2480+331 -> 2811 | M14: 1152.04918 | N14: 0.2546028689 | O14: 2057.559836 | P14: 3358.223361 | Q14: 1017.393064 | R14: 2960.51775 | S14: 32895.96367
B15: 1050 | C15: 62.6 | D15: 0.09398138 | E15: 609.64888 | F15: 1294.762686 | G15: 375.5495945 | H15: 877.1926331 | I15: 12142.8642 | K15: 2.44 | L15: 2977 | M15: 1220.081967 | N15: 0.2696381148 | O15: 2179.066393 | P15: 3556.538934 | Q15: 1077.473907 | R15: 3135.347329 | S15: 34838.59262 | AJ15: Total | AK15: =AK13+AK11 -> 28380 | AL15: =AL13+AL11 -> 293.11 | AM15: =AM13+AM11 -> 1160 | AN15: =AN13+AN11 -> -9150 | AO15: =SUM(AK15:AN15) -> 20683.11
B16: 1200 | C16: 71.5 | D16: 0.10734295 | E16: 696.3242 | F16: 1478.842365 | G16: 428.9424282 | H16: 1001.905324 | I16: 13869.24585 | K16: 2.44 | L16: 3100 | M16: 1270.491803 | N16: 0.2807786885 | O16: 2269.098361 | P16: 3703.483607 | Q16: 1121.991639 | R16: 3264.889728 | S16: 36278.01045
B17: 1350 | C17: 80.5 | D17: 0.12085465 | E17: 783.9734 | F17: 1664.990355 | G17: 482.9351814 | H17: 1128.019281 | I17: 15615.02505 | K17: 2.44 | L17: 4410 | M17: 1807.377049 | N17: 0.3994303279 | O17: 3227.97541 | P17: 5268.504098 | Q17: 1596.12359 | R17: 4644.568935 | S17: 51608.39551
B18: 1400 | C18: =80.5+2.97 -> 83.47 | D18: 0.125313511 | E18: 812.897636 | F18: 1726.419192 | G18: 500.75279 | H18: 1169.636886 | I18: 16191.13219 | K18: 2.44 | L18: =4410+102 -> 4512 | M18: 1849.180328 | N18: 0.4086688525 | O18: 3302.636066 | P18: 5390.360656 | Q18: 1633.040734 | R18: 4751.994339 | S18: 52802.05908
B19: 1500 | C19: 89.4 | D19: 0.13421622 | E19: 870.64872 | F19: 1849.070034 | G19: 536.3280151 | H19: 1252.731971 | I19: 17341.40671 | K19: 2.44 | L19: 4716 | M19: 1932.786885 | N19: 0.4271459016 | O19: 3451.957377 | P19: 5634.07377 | Q19: 1706.875023 | R19: 4966.845147 | S19: 55189.38622
B20: 1600 | C20: 95.3 | D20: 0.14307389 | E20: 928.10764 | F20: 1971.100383 | G20: 571.7232644 | H20: 1335.406676 | I20: 18485.86196 | K20: 2.44 | L20: =4716+1070 -> 5786 | M20: 2371.311475 | N20: 0.5240598361 | O20: 4235.162295 | P20: 6912.372951 | Q20: 2094.143105 | R20: 6093.758698 | S20: 67711.15112
B21: 1650 | C21: 98.3 | D21: 0.14757779 | E21: 957.32404 | F21: 2033.149713 | G21: 589.7208488 | H21: 1377.444662 | I21: 19067.78836 | K21: 2.44 | L21: 6321 | M21: 2590.57377 | N21: 0.5725168033 | O21: 4626.764754 | P21: 7551.522541 | Q21: 2287.777146 | R21: 6657.215474 | S21: 73972.03357
B22: 1800 | C22: 107.3 | D22: 0.16108949 | E22: 1044.97324 | F22: 2219.297703 | G22: 643.713602 | H22: 1503.558619 | I22: 20813.56756 | K22: 2.44 | L22: 6564 | M22: 2690.163934 | N22: 0.5945262295 | O22: 4804.632787 | P22: 7841.827869 | Q22: 2375.726813 | R22: 6913.140701 | S22: 76815.76148
B23: 2000 | C23: 119.2 | D23: 0.17895496 | E23: 1160.86496 | F23: 2465.426712 | G23: 715.1040202 | H23: 1670.309295 | I23: 23121.87561 | K23: 2.44 | L23: =6564+1464 -> 8028 | M23: 3290.163934 | N23: 0.7271262295 | O23: 5876.232787 | P23: 9590.827869 | Q23: 2905.596413 | R23: 8455.011204 | S23: 93948.34448
B24: 2100 | C24: 125.2 | D24: 0.18796276 | E24: 1219.29776 | F24: 2589.525372 | G24: 751.099189 | H24: 1754.385266 | I24: 24285.72841 | K24: 2.44 | L24: 8760 | M24: 3590.163934 | N24: 0.7934262295 | O24: 6412.032787 | P24: 10465.32787 | Q24: 3170.531213 | R24: 9225.946456 | S24: 102514.636 | AI24: Category | AJ24: Units | AK24: Production | AL24: Transport | AM24: Manufacturing | AN24: End of Life | AO24: Total KGs | AP24: Total MT
A25: 2.8 | B25: 2200 | C25: 178.3 | D25: 0.26768179 | E25: 1736.42804 | F25: 3687.798513 | G25: 1069.656433 | H25: 2498.457612 | I25: 34585.82568 | K25: 2.44 | L25: =8760+834 -> 9594 | M25: 3931.967213 | N25: 0.8689647541 | O25: 7022.493443 | P25: 11461.68443 | Q25: 3472.383157 | R25: 10104.30711 | S25: 112274.5911 | AI25: GWP | AJ25: CO2 KGs | AK25: 174 | AL25: 9 | AM25: 38 | AO25: =SUM(AK25:AN25) -> 221 | AP25: =AO25/1000 -> 0.221
B26: 2400 | C26: 194.5 | D26: 0.29200285 | E26: 1894.1966 | F26: 4022.864895 | G26: 1166.843389 | H26: 2725.462734 | I26: 37728.22823 | K26: 2.44 | L26: 11261 | M26: 4615.163934 | N26: 1.01995123 | O26: 8242.682787 | P26: 13453.20287 | Q26: 4075.725113 | R26: 11859.97523 | S26: 131782.7986
B27: 2600 | C27: 210.7 | D27: 0.31632391 | E27: 2051.96516 | F27: 4357.931277 | G27: 1264.030344 | H27: 2952.467856 | I27: 40870.63079 | K27: 2.44 | L27: =11261+2626 -> 13887 | M27: 5691.393443 | N27: 1.257797951 | O27: 10164.82869 | P27: 16590.41189 | Q27: 5026.160611 | R27: 14625.65279 | S27: 162513.7842 | AI27: Fresh Water | AJ27: Liters | AK27: 1276 | AM27: 510
A28: 125 x 25 | B28: 2700 | C28: 250 | D28: 0.375325 | E28: 2434.7 | F28: 5170.7775 | G28: 1499.7987 | H28: 3503.165468 | I28: 48493.86662 | K28: 2.44 | L28: 15200 | M28: 6229.508197 | N28: 1.376721311 | O28: 11125.90164 | P28: 18159.01639 | Q28: 5501.378361 | R28: 16008.49157 | S28: 177879.277
B29: 3000 | C29: 278 | D29: 0.4173614 | E29: 2707.3864 | F29: 5749.90458 | G29: 1667.776154 | H29: 3895.52 | I29: 53925.17969 | K29: 2.44 | L29: 17671 | M29: 7242.213115 | N29: 1.600529098 | O29: 12934.59262 | P29: 21111.05123 | Q29: 6395.714277 | R29: 18610.92464 | S29: 206796.3622 | AK29: =AK27 -> 1276 | AL29: =AL27 -> 0 | AM29: 510 | AO29: =SUM(AK29:AN29) -> 1786
B30: 3300 | C30: 305 | D30: 0.4578965 | E30: 2970.334 | F30: 6308.34855 | G30: 1829.754414 | H30: 4273.861871 | I30: 59162.51728
A31: 3.5 | B31: 3600 | C31: 410 | D31: 0.615533 | E31: 3992.908 | F31: 8480.0751 | G31: 2459.669868 | H31: 5745.191367 | I31: 79529.94126 | AI31: Total Primary | AJ31: Megajoules | AK31: 2098 | AL31: 141 | AM31: 676 | AO31: =SUM(AK31:AN31) -> 2915
AI32: Energy
B33: 1 | C33: =B33+1 -> 2 | D33: =C33+1 -> 3 | E33: 4 | F33: 5 | G33: 6 | H33: 7 | I33: 8 | J33: 9 | K33: 10 | L33: 11 | M33: 12 | N33: 13 | O33: 14 | P33: 15 | Q33: 16 | R33: 17 | S33: 18
B35: carbon footprint per gallon of water
B36: Divide by one million, and we get 0.000004082 metric tons per gallon. An easier calculation is to take the number of gallons and divide by 244,956.
B37: If you use 2,000 gallons per month, your carbon emissions for water would be 2,000/244956 = 0.008 metric tons.Dec. 5, 2012
B38: Gallons | D38: MT | E38: Per Gallon
B39: 2000 | C39: 244956 | D39: =B3:B39/C39 -> 0.008164731625 | E39: =D39/B39 -> 4.082365813e-06
B41: Liters | C41: 4.54609 | E41: =E39/C41 -> 8.979949391e-07
B43: 95 liters to produce 1 KWH of Electricity
